bitfinex/quotes_SOLUSD_20250917
["timestamp","ask_amount","ask_price","bid_price","bid_amount"]
[1758076333182,2.38434962,236.89,236.88,46.67559401]
[1758076333484,0.36,236.89,236.88,46.67559401]
[1758076333685,2.38434962,236.89,236.88,46.67559401]
[1758076334259,2.38434962,236.89,236.88,13.59559401]
[1758076334260,3.05434962,236.89,236.88,13.59559401]
[1758076334493,3.05434962,236.89,236.88,33.04]
[1758076334790,3.05434962,236.89,236.83,16.74152077]
[1758076334791,3.05434962,236.89,236.84,13.59559401]
[1758076335087,2.02434962,236.85,236.84,13.59559401]
[1758076335293,2.69434962,236.85,236.84,46.63559401]
[1758076335874,2.02434962,236.85,236.84,50.85769281]
[1758076336072,2.38434962,236.89,236.84,51.55769281]
[1758076336282,2.38434962,236.89,236.86,13.59559401]
[1758076336470,2.38434962,236.89,236.87,33.04]
[1758076336679,2.38434962,236.89,236.88,13.59559401]
[1758076337408,0.36,236.89,236.88,13.59559401]
[1758076337767,0.36,236.89,236.88,17.81714078]
[1758076340170,1.03,236.89,236.88,17.81714078]
[1758076340669,1.03,236.89,236.88,33.02]
[1758076341394,0.36,236.89,236.88,33.02]
[1758076341772,2.38434962,236.89,236.88,33.02]
[1758076342077,3.05434962,236.89,236.88,46.61559401]
[1758076342703,3.05434962,236.89,236.88,33.0]
[1758076342901,1.03,236.89,236.88,33.0]
[1758076343073,3.05434962,236.89,236.88,33.0]
[1758076345183,1.03,236.89,236.88,33.0]
[1758076345394,3.05434962,236.89,236.88,33.0]
[1758076345697,2.38434962,236.89,236.88,33.0]
[1758076346471,3.08434962,236.89,236.88,33.0]
[1758076346879,2.38434962,236.89,236.88,46.59559401]
[1758076348098,0.36,236.89,236.88,46.59559401]
[1758076348298,2.38434962,236.89,236.88,46.59559401]
[1758076349976,3.08434962,236.89,236.88,46.59559401]
[1758076350706,2.38434962,236.89,236.88,46.59559401]
[1758076351004,3.08434962,236.89,236.88,46.59559401]
[1758076351822,2.35494647,236.89,236.88,46.59559401]
[1758076352623,6.57631503,236.89,236.88,33.0]
[1758076352822,6.57631503,236.89,236.85,13.59559401]
[1758076352999,0.7,236.88,236.86,32.94]
[1758076353199,0.7,236.87,236.86,32.94]
[1758076353405,0.7,236.87,236.85,32.92]
[1758076353614,4.58136856,236.89,236.85,32.92]
[1758076353615,0.7,236.86,236.85,32.92]
[1758076354113,3.28989294,236.86,236.85,32.92]
[1758076354831,7.51179617,236.86,236.85,32.92]
[1758076355811,3.28989294,236.86,236.85,32.92]
[1758076356125,1.99494647,236.86,236.85,32.92]
[1758076356707,1.29494647,236.86,236.85,32.92]
[1758076357622,1.99494647,236.86,236.85,32.92]
[1758076359615,3.28989294,236.86,236.85,32.92]
[1758076360213,7.17473235,236.86,236.85,32.92]
[1758076360617,11.39669286,236.86,236.83,32.9]
[1758076360819,1.29494647,236.84,236.83,32.9]
[1758076361338,0.7,236.88,236.83,33.61]
[1758076361504,1.29494647,236.84,236.83,32.9]
[1758076362230,1.29494647,236.84,236.83,33.61]
[1758076362705,1.29494647,236.84,236.83,37.83243803]
[1758076363516,0.36,236.89,236.84,13.59559401]
[1758076363717,1.29494647,236.86,236.85,46.45559401]
[1758076363906,1.29494647,236.86,236.85,47.16559401]
[1758076364108,1.29494647,236.86,236.85,46.45559401]
[1758076364513,1.29494647,236.86,236.85,47.16559401]
[1758076364929,1.29494647,236.86,236.85,51.38767549]
[1758076365113,0.36,236.89,236.85,51.38767549]
[1758076365439,0.36,236.89,236.86,0.71]
[1758076365604,0.36,236.89,236.87,33.57]
[1758076365917,0.36,236.89,236.87,32.86]
[1758076366230,1.06,236.89,236.87,32.86]
[1758076366623,1.29494647,236.88,236.87,32.86]
[1758076368542,0.36,236.89,236.87,32.86]
[1758076368829,1.29494647,236.88,236.87,32.86]
[1758076372936,1.29494647,236.88,236.87,37.08172499]
[1758076373645,1.29494647,236.88,236.87,51.387319]
[1758076376043,1.29494647,236.88,236.87,50.677319]
[1758076378144,1.29494647,236.88,236.87,46.45559401]
[1758076378338,2.00494647,236.88,236.87,46.45559401]
[1758076378641,1.29494647,236.88,236.87,46.45559401]
[1758076379439,2.00494647,236.88,236.87,46.41559401]
[1758076380531,2.00494647,236.88,236.83,2.00494647]
[1758076380734,1.29494647,236.84,236.83,19.82297552]
[1758076380938,2.00494647,236.84,236.83,46.39559401]
[1758076381246,2.00494647,236.84,236.8,13.59559401]
[1758076381429,1.29494647,236.81,236.8,17.81855614]
[1758076381627,1.29494647,236.81,236.8,50.63855614]
[1758076382434,1.29494647,236.81,236.8,46.41559401]
[1758076382635,0.71,236.85,236.8,51.34850888]
[1758076382838,1.29494647,236.81,236.8,51.34850888]
[1758076383452,1.29494647,236.81,236.8,50.63850888]
[1758076384137,1.29494647,236.82,236.8,51.34850888]
[1758076384337,1.29494647,236.82,236.81,0.71]
[1758076385045,0.71,236.86,236.8,50.63850888]
[1758076385254,1.29494647,236.82,236.8,50.63850888]
[1758076385436,1.29494647,236.82,236.81,0.71]
[1758076386240,0.06,236.88,236.83,13.59559401]
[1758076386428,0.06,236.88,236.85,13.59559401]
[1758076386629,0.06,236.88,236.86,32.82]
[1758076387134,0.06,236.88,236.87,14.30559401]
[1758076387839,0.06,236.88,236.87,18.527319]
[1758076388036,0.06,236.88,236.87,17.817319]
[1758076389033,1e-08,236.88,236.87,18.81164214]
[1758076389251,0.06,236.94,236.87,18.81164214]
[1758076389252,0.06,236.94,236.93,39.59559401]
[1758076389439,0.06,236.94,236.93,72.69991715]
[1758076389642,0.06,236.94,236.93,73.15991715]
[1758076389841,0.06,236.94,236.93,77.38057303]
[1758076390246,0.06,236.94,236.93,79.07015465]
[1758076390448,0.06,236.94,236.93,78.78583151]
[1758076392128,0.06,236.94,236.93,78.32583151]
[1758076392330,0.06,236.94,236.93,78.30583151]
[1758076393638,2.06494647,236.94,236.93,17.81624989]
[1758076393841,2.06494647,236.94,236.93,50.61624989]
[1758076394357,1.35494647,236.94,236.93,50.61624989]
[1758076394935,2.06494647,236.94,236.93,50.61624989]
[1758076395159,1.35494647,236.94,236.93,50.61624989]
[1758076398163,2.06494647,236.94,236.93,50.61624989]
[1758076398850,1.35494647,236.94,236.93,50.61624989]
[1758076400662,2.06494647,236.94,236.93,50.61624989]
[1758076401554,1.35494647,236.94,236.93,50.61624989]
[1758076401747,2.06494647,236.94,236.93,50.61624989]
[1758076401943,1.35494647,236.94,236.93,50.61624989]
[1758076402662,2.06494647,236.94,236.93,50.61624989]
[1758076403447,0.06,236.94,236.93,50.61624989]
[1758076403849,1.35494647,236.94,236.93,50.61624989]
[1758076405168,0.06,236.94,236.93,50.61624989]
[1758076406047,0.06,236.94,236.93,51.07624989]
[1758076409477,0.06,236.94,236.93,50.61624989]
[1758076411972,0.06,236.94,236.93,17.81624989]
[1758076412269,2.00494647,236.94,236.93,50.49624989]
[1758076413369,2.00494647,236.94,236.89,4.22125521]
[1758076413571,1.29494647,236.9,236.89,17.81684922]
[1758076413776,2.67311681,236.9,236.89,13.59559401]
[1758076413963,2.67311681,236.9,236.89,46.27559401]
[1758076416969,0.65,236.9,236.89,46.27559401]
[1758076417175,2.67311681,236.9,236.89,46.27559401]
[1758076417373,0.65,236.9,236.89,46.27559401]
[1758076417681,2.67311681,236.9,236.89,46.27559401]
[1758076418848,2.67311681,236.9,236.89,32.68]
[1758076419048,2.67311681,236.9,236.88,0.03]
[1758076419249,6.89433545,236.9,236.89,32.66]
[1758076419471,6.89433545,236.9,236.88,0.03]
[1758076419678,6.89433545,236.9,236.86,32.71]
[1758076419974,2.02311681,236.87,236.86,32.71]
[1758076420278,2.67311681,236.87,236.86,32.71]
[1758076424669,2.67311681,236.87,236.86,0.03]
[1758076425080,4.69623362,236.87,236.86,0.03]
[1758076429712,2.67311681,236.87,236.86,0.03]
[1758076429878,0.65,236.87,236.86,0.03]
[1758076430074,2.67311681,236.87,236.86,0.03]
[1758076437312,2.02311681,236.87,236.86,0.03]
[1758076437490,2.73311681,236.87,236.86,0.03]
[1758076438800,0.71,236.87,236.86,0.03]
[1758076438999,2.73311681,236.87,236.86,0.03]
[1758076439808,6.9548418,236.87,236.86,0.03]
[1758076440000,8.97795861,236.87,236.86,0.03]
[1758076440300,6.9548418,236.87,236.86,0.03]
[1758076443585,2.02311681,236.87,236.86,0.03]
[1758076444896,2.73311681,236.87,236.86,0.03]
[1758076446111,2.02311681,236.87,236.86,0.03]
[1758076446417,6.9548418,236.87,236.86,0.03]
[1758076447409,0.06,236.88,236.86,0.03]
[1758076447717,2.02311681,236.87,236.86,0.03]
[1758076448517,0.06,236.88,236.86,0.03]
[1758076448518,0.06,236.88,236.87,4.22172499]
[1758076449097,0.06,236.88,236.87,4.71172499]
[1758076452214,0.06,236.88,236.87,18.307319]
[1758076452837,0.06,236.88,236.87,13.59559401]
[1758076452996,0.06,236.88,236.86,36.83186891]
[1758076453195,0.06,236.88,236.86,0.03]
[1758076453400,0.71,236.87,236.86,32.59]
[1758076454304,0.71,236.87,236.86,0.03]
[1758076457717,2.08311681,236.88,236.86,0.03]
[1758076461810,2.79311681,236.88,236.86,0.03]
[1758076463914,2.08311681,236.88,236.86,0.03]
[1758076464930,0.71,236.87,236.86,0.03]
[1758076465116,2.79311681,236.88,236.86,0.03]
[1758076465637,2.08311681,236.88,236.86,0.03]
[1758076465830,2.77311681,236.88,236.86,0.03]
[1758076466743,2.08311681,236.88,236.86,0.03]
[1758076467122,2.77311681,236.88,236.86,0.03]
[1758076469045,0.69,236.87,236.86,0.03]
[1758076470140,6.9348418,236.87,236.86,0.03]
[1758076475863,6.20704447,236.87,236.86,0.03]
[1758076477972,1.29531948,236.87,236.86,0.03]
[1758076482268,0.06,236.88,236.86,0.03]
[1758076482456,1.98531948,236.87,236.86,0.03]
[1758076484261,1.29531948,236.87,236.86,0.03]
[1758076484644,0.69,236.87,236.86,0.03]
[1758076484971,1.29531948,236.87,236.86,0.03]
[1758076485445,1.98531948,236.87,236.86,0.03]
[1758076486256,6.20704447,236.87,236.86,0.03]
[1758076487266,11.38832239,236.87,236.86,0.03]
[1758076487767,6.20704447,236.87,236.86,0.03]
[1758076489639,38.72704447,236.87,236.86,0.03]
[1758076490144,6.20704447,236.87,236.86,0.03]
[1758076491485,6.49136761,236.87,236.86,0.03]
[1758076491765,9.47791175,236.87,236.86,0.03]
[1758076493079,13.36387019,236.87,236.86,0.03]
[1758076493256,40.70259227,236.87,236.86,0.03]
[1758076493454,39.01136761,236.87,236.86,0.03]
[1758076493856,6.49136761,236.87,236.86,0.03]
[1758076498461,39.01136761,236.87,236.86,0.03]
[1758076499973,5.51704447,236.87,236.86,0.03]
[1758076500155,27.29531948,236.87,236.86,0.03]
[1758076500973,26.0,236.87,236.86,0.03]
[1758076501174,27.29531948,236.87,236.86,0.03]
[1758076502779,1.29531948,236.87,236.86,0.03]
[1758076502978,1.29531948,236.87,236.86,0.52]
[1758076503287,1.29531948,236.87,236.86,0.03]
[1758076508500,6.18704447,236.87,236.86,0.03]
[1758076508665,5.51704447,236.87,236.86,0.03]
[1758076508867,6.18704447,236.87,236.86,0.03]
[1758076509069,32.18704447,236.87,236.86,0.03]
[1758076510587,27.29531948,236.87,236.86,0.03]
[1758076510898,1.29531948,236.87,236.86,0.03]
[1758076514600,6.18704447,236.87,236.86,0.03]
[1758076515395,1.96531948,236.87,236.86,0.03]
[1758076515591,1.29531948,236.87,236.86,0.03]
[1758076517581,0.06,236.88,236.86,0.03]
[1758076517781,1.29531948,236.87,236.86,0.03]
[1758076521612,1.96531948,236.87,236.86,0.03]
[1758076522018,0.67,236.87,236.86,0.03]
[1758076522224,1.96531948,236.87,236.86,0.03]
[1758076523204,1.29531948,236.87,236.86,0.03]
[1758076523908,0.06,236.88,236.86,0.03]
[1758076524087,1.29531948,236.87,236.86,0.03]
[1758076524992,0.06,236.88,236.86,0.03]
[1758076530014,0.06,236.88,236.87,0.49]
[1758076530219,0.06,236.88,236.87,14.08559401]
[1758076531622,0.06,236.88,236.87,15.7758896]
[1758076531801,0.06,236.88,236.87,19.99761459]
[1758076532210,0.06,236.88,236.87,52.51761459]
[1758076534013,0.06,236.88,236.87,52.02761459]
[1758076534214,0.06,236.88,236.87,52.51761459]
[1758076534826,0.06,236.88,236.87,52.02761459]
[1758076535597,0.06,236.91,236.9,39.59559401]
[1758076535903,0.06,236.93,236.91,13.59559401]
[1758076536099,0.06,236.93,236.92,47.75523663]
[1758076536414,0.06,236.93,236.92,48.18523663]
[1758076537026,0.06,236.93,236.92,54.09565227]
[1758076537916,0.06,236.93,236.92,54.82128689]
[1758076538538,0.06,236.94,236.92,54.82128689]
[1758076538828,0.06,236.94,236.93,16.33087125]
[1758076539323,0.06,236.94,236.93,18.02045286]
[1758076542523,0.06,236.94,236.93,18.52045286]
[1758076542703,0.06,236.94,236.93,17.80612972]
[1758076543208,0.06,236.94,236.93,50.32612972]
[1758076543526,0.06,236.94,236.93,50.34612972]
[1758076545314,0.06,236.94,236.93,50.77612972]
[1758076545625,0.06,236.94,236.93,50.34612972]
[1758076546638,0.06,236.94,236.93,50.77612972]
[1758076547707,0.06,236.94,236.93,51.06045286]
[1758076548137,0.06,236.94,236.93,50.63045286]
[1758076552250,0.06,236.94,236.93,54.85110874]
[1758076556923,0.77,236.94,236.93,48.28517562]
[1758076557123,0.77,236.94,236.93,46.59559401]
[1758076557427,0.77,236.94,236.93,48.61654811]
[1758076557642,0.06,236.94,236.93,52.83720399]
[1758076557980,0.06,236.94,236.93,52.86720399]
[1758076558160,0.06,236.94,236.93,54.55699974]
[1758076560562,0.77,236.94,236.93,54.55699974]
[1758076560718,0.06,236.94,236.93,52.86720399]
[1758076560923,0.06,236.94,236.93,54.55699974]
[1758076561228,0.77,236.94,236.93,54.55699974]
[1758076561629,0.06,236.94,236.93,54.55699974]
[1758076562048,0.77,236.94,236.93,52.86720399]
[1758076562645,0.77,236.94,236.93,50.84624989]
[1758076562865,0.06,236.94,236.93,54.55699973]
[1758076563077,0.77,236.94,236.93,52.86720399]
[1758076563576,0.06,236.94,236.93,54.55699973]
[1758076563752,0.77,236.94,236.93,54.55699973]
[1758076564176,0.06,236.94,236.93,52.53604563]
[1758076564352,0.06,236.94,236.93,54.55699973]
[1758076567266,0.77,236.94,236.93,52.86720399]
[1758076567769,0.77,236.94,236.93,50.84624989]
[1758076569771,0.06,236.94,236.93,52.86720399]
[1758076570587,0.77,236.94,236.93,50.84624989]
[1758076570883,0.06,236.94,236.93,50.84624989]
[1758076572081,0.77,236.94,236.93,50.84624989]
[1758076572386,0.06,236.94,236.93,50.84624989]
[1758076572884,0.06,236.94,236.93,52.53604564]
[1758076575454,0.77,236.94,236.93,52.53604564]
[1758076575778,0.06,236.94,236.93,52.53604564]
[1758076576890,0.77,236.94,236.93,52.53604564]
[1758076578491,0.77,236.94,236.93,50.84624989]
[1758076578879,0.77,236.94,236.93,4.25065588]
[1758076579058,0.77,236.94,236.93,36.75065588]
[1758076581159,0.06,236.94,236.93,50.34624989]
[1758076581364,0.06,236.94,236.93,52.36720399]
[1758076581781,0.06,236.94,236.93,52.79720399]
[1758076581996,0.06,236.97,236.96,13.59559401]
[1758076582176,0.06,236.97,236.96,46.09559401]
[1758076583268,0.06,236.97,236.96,50.31571554]
[1758076585170,0.06,236.97,236.96,52.33666964]
[1758076589763,0.3,236.99,236.98,28.0209541]
[1758076589960,0.3,236.99,236.98,60.5009541]
[1758076590796,0.3,236.99,236.98,78.31631349]
[1758076590968,0.3,236.99,236.98,79.03063663]
[1758076591300,0.3,236.99,236.98,76.57968253]
[1758076591606,0.3,236.99,236.98,78.60063663]
[1758076593006,0.3,236.99,236.98,76.57968253]
[1758076593177,0.3,236.99,236.98,78.60063663]
[1758076594000,0.98,236.99,236.98,43.81535939]
[1758076594410,0.3,236.99,236.98,78.31631349]
[1758076594607,1.04,236.99,236.98,78.31631349]
[1758076594921,0.36,236.99,236.98,78.31631349]
[1758076595781,0.36,236.99,236.98,80.33726759]
[1758076595983,1.04,236.99,236.98,80.33726759]
[1758076596718,1.04,236.99,236.98,78.31631349]
[1758076596929,1.04,236.99,236.98,76.29535939]
[1758076597100,1.04,236.99,236.98,78.31631349]
[1758076597582,0.36,236.99,236.98,78.31631349]
[1758076599182,1.04,236.99,236.98,78.31631349]
[1758076599621,0.36,236.99,236.98,78.31631349]
[1758076599805,0.36,236.99,236.98,76.29535939]
[1758076600009,1.04,236.99,236.98,43.81535939]
[1758076600193,1.04,236.99,236.98,76.29535939]
[1758076603704,1.04,236.99,236.98,50.29535939]
[1758076604210,1.04,236.99,236.98,36.69976538]
[1758076604923,1.04,236.99,236.98,32.48]
[1758076605290,1.04,236.99,236.95,4.22029964]
[1758076605492,1.04,236.99,236.93,4.30872641]
[1758076605493,1.29283594,236.96,236.93,0.03]
[1758076605699,1.29283594,236.96,236.94,32.48]
[1758076605904,0.68,236.95,236.94,32.48]
[1758076606608,1.97283594,236.95,236.94,32.48]
[1758076610992,0.68,236.95,236.94,32.48]
[1758076612402,1.29283594,236.98,236.94,36.70032755]
[1758076612704,0.68,236.97,236.94,36.70032755]
[1758076612910,0.68,236.97,236.94,36.73032755]
[1758076613498,0.68,236.96,236.94,36.73032755]
[1758076614313,0.68,236.98,236.94,36.73032755]
[1758076614527,1.65283594,236.99,236.94,36.73032755]
[1758076614528,0.36,236.99,236.95,13.59559401]
[1758076614696,0.36,236.99,236.96,32.48]
[1758076615023,0.69,236.98,236.96,32.48]
[1758076615220,0.68,236.97,236.96,32.48]
[1758076615702,0.68,236.98,236.96,32.48]
[1758076616319,0.68,236.98,236.96,36.70012116]
[1758076617512,0.36,236.99,236.96,36.70012116]
[1758076617921,1.04,236.99,236.96,36.70012116]
[1758076619019,0.36,236.99,236.97,14.02559401]
[1758076619317,0.36,236.99,236.98,46.07559401]
[1758076619918,0.36,236.99,236.98,46.50559401]
[1758076620216,0.36,236.99,236.98,46.07559401]
[1758076620598,0.36,236.99,236.98,50.72535939]
[1758076621218,0.36,236.99,236.98,50.29535939]
[1758076621398,0.36,236.99,236.98,51.58819533]
[1758076621805,0.36,236.99,236.98,52.01819533]
[1758076622824,0.36,236.99,236.98,51.58819533]
[1758076625544,0.36,236.99,236.98,52.01819533]
[1758076626137,0.36,236.99,236.98,53.70749153]
[1758076627214,1.04,236.99,236.98,17.81535939]
[1758076627416,1.04,236.99,236.98,50.29535939]
[1758076627618,1.04,236.99,236.98,4.21976538]
[1758076627822,1.04,236.99,236.98,32.48]
[1758076628611,2.33283594,236.99,236.96,4.2199693]
[1758076628818,0.68,236.98,236.97,32.48]
[1758076629642,0.36,236.99,236.98,4.21976538]
[1758076630329,1.04,236.99,236.98,4.21976538]
[1758076633320,1.04,236.99,236.97,32.51]
[1758076633528,0.68,236.98,236.97,32.51]
[1758076633724,0.68,236.98,236.97,36.72994345]
[1758076633928,0.68,236.98,236.97,32.51]
[1758076635137,0.36,236.99,236.97,32.51]
[1758076635518,1.04,236.99,236.97,32.51]
[1758076635922,0.68,236.98,236.97,32.51]
[1758076640629,1.97283594,236.98,236.97,0.03]
[1758076642246,6.19260132,236.98,236.97,0.03]
[1758076645651,4.89976538,236.98,236.97,0.03]
[1758076645855,6.19260132,236.98,236.97,0.03]
[1758076646754,1.97283594,236.98,236.97,0.03]
[1758076647250,0.68,236.98,236.97,0.03]
[1758076647757,1.97283594,236.98,236.97,0.03]
[1758076648251,0.68,236.98,236.97,0.03]
[1758076648449,1.97283594,236.98,236.97,0.03]
[1758076649157,1.65283594,236.99,236.97,0.03]
[1758076649357,2.32283594,236.99,236.97,0.03]
[1758076649536,0.06,236.98,236.97,0.03]
[1758076650053,0.73,236.98,236.97,0.03]
[1758076650367,2.02283594,236.98,236.97,0.03]
[1758076651354,0.73,236.98,236.97,0.03]
[1758076651743,0.06,236.98,236.97,0.03]
[1758076655280,0.06,236.98,236.97,1.32283594]
[1758076655478,0.06,236.98,236.97,15.34842995]
[1758076655975,0.06,236.98,236.97,17.03794021]
[1758076658352,0.06,236.98,236.97,17.32226335]
[1758076658971,0.06,236.98,236.97,17.82226335]
[1758076659167,0.06,236.98,236.97,50.28226335]
[1758076659762,0.36,236.99,236.98,17.81535939]
[1758076660071,0.36,236.99,236.98,24.70953909]
[1758076661464,0.36,236.99,236.98,19.53819533]
[1758076661866,0.36,236.99,236.98,20.26494047]
[1758076664472,0.36,236.99,236.98,21.95423667]
[1758076667659,0.36,236.99,236.98,21.52423667]
[1758076667859,0.36,236.99,236.98,53.98423667]
[1758076673176,1.03,236.99,236.98,19.50465559]
[1758076673368,1.03,236.99,236.98,51.96465559]
[1758076673568,1.03,236.99,236.98,53.98423667]
[1758076673768,0.36,236.99,236.98,53.98423667]
[1758076683898,0.36,236.99,236.98,51.96465559]
[1758076684201,0.36,236.99,236.98,53.98423667]
[1758076685499,0.36,236.99,236.98,51.99465559]
[1758076685802,0.36,236.99,236.98,54.01423667]
[1758076687009,1.02,236.99,236.98,19.53465559]
[1758076687300,1.02,236.99,236.98,53.99423667]
[1758076688497,0.36,236.99,236.98,53.99423667]
[1758076689794,1.02,236.99,236.98,53.99423667]
[1758076694408,1.02,236.99,236.98,51.97465559]
[1758076694596,1.02,236.99,236.98,53.99423667]
[1758076695209,1.02,236.99,236.98,51.97465559]
[1758076695507,0.36,236.99,236.98,53.99423667]
[1758076696406,1.02,236.99,236.98,53.99423667]
[1758076696919,1.02,236.99,236.98,51.97465559]
[1758076697101,1.02,236.99,236.98,53.99423667]
[1758076697299,0.36,236.99,236.98,53.99423667]
[1758076700594,0.36,236.99,236.98,51.97465559]
[1758076700796,0.36,236.99,236.98,53.99423667]
[1758076701812,0.36,236.99,236.98,51.97465559]
[1758076701998,0.36,236.99,236.98,53.99423667]
[1758076702616,0.36,236.99,236.98,51.97465559]
[1758076702820,0.36,236.99,236.98,53.99423667]
[1758076703918,1.02,236.99,236.98,53.99423667]
[1758076704799,1.02,236.99,236.98,51.97465559]
[1758076705000,1.02,236.99,236.98,15.31489021]
[1758076705218,1.02,236.99,236.98,1.7192962]
[1758076705520,1.02,236.99,236.98,32.47]
[1758076706319,1.02,236.99,236.98,36.68976538]
[1758076706713,0.06,237.01,236.98,39.13934646]
[1758076707016,0.06,237.01,237.0,15.61517509]
[1758076707317,0.06,237.01,237.0,48.05517509]
[1758076707696,0.06,237.01,237.0,49.74432861]
[1758076708821,0.06,237.01,237.0,53.96373789]
[1758076709800,1e-08,237.01,237.0,53.96373789]
[1758076717436,1e-08,237.01,237.0,54.24806103]
[1758076720424,1e-08,237.01,237.0,54.27806103]
[1758076721127,0.65000001,237.01,237.0,54.27806103]
[1758076721722,1e-08,237.01,237.0,54.27806103]
[1758076723127,1e-08,237.01,237.0,54.70806103]
[1758076723313,7.06240095,237.23,237.04,0.28432314]
[1758076723511,1e-08,237.09,237.08,41.61517509]
[1758076723717,1e-08,237.09,237.08,75.68678485]
[1758076723939,1e-08,237.09,237.08,86.1410418]
[1758076724116,1e-08,237.09,237.08,86.42536494]
[1758076724442,1e-08,237.09,237.08,86.82282846]
[1758076724638,1e-08,237.09,237.08,88.1140193]
[1758076724818,1e-08,237.09,237.08,83.13205305]
[1758076725140,1e-08,237.09,237.08,80.586557]
[1758076725344,1e-08,237.09,237.08,81.87774784]
[1758076726343,1e-08,237.09,237.08,80.586557]
[1758076726537,1e-08,237.09,237.08,81.87774784]
[1758076727533,0.65000001,237.09,237.08,81.9734247]
[1758076728056,0.65000001,237.09,237.08,58.0093118]
[1758076728268,0.65000001,237.09,237.08,94.48050264]
[1758076728555,0.65000001,237.09,237.08,93.1893118]
[1758076728766,0.65000001,237.09,237.08,94.48050264]
[1758076729833,1e-08,237.09,237.08,94.48050264]
[1758076730033,0.65000001,237.09,237.08,94.48050264]
[1758076732353,0.65000001,237.09,237.08,93.1893118]
[1758076732749,0.65000001,237.09,237.08,94.48050264]
[1758076733265,0.65000001,237.09,237.08,93.1893118]
[1758076733469,0.65000001,237.09,237.08,94.48050264]
[1758076734268,0.65000001,237.09,237.08,93.1893118]
[1758076734438,0.65000001,237.09,237.08,94.48050264]
[1758076734757,0.3,237.19,237.1,0.28432314]
[1758076734958,0.3,237.19,237.16,26.0]
[1758076735153,0.3,237.19,237.18,13.59559401]
[1758076735648,0.3,237.19,237.18,17.03285951]
[1758076736041,0.66,237.25,237.22,17.81109017]
[1758076736253,0.3,237.29,237.26,26.0]
[1758076736440,0.3,237.29,237.26,61.46]
[1758076736757,0.66,237.28,237.27,5.90087697]
[1758076737264,0.66,237.28,237.27,10.1154848]
[1758076737763,0.3,237.29,237.27,10.1154848]
[1758076737764,0.3,237.29,237.28,13.59559401]
[1758076737960,0.3,237.29,237.28,50.38678485]
[1758076738160,0.96,237.29,237.28,50.38678485]
[1758076738464,0.3,237.39,237.35,26.0]
[1758076738668,0.3,237.39,237.36,35.6]
[1758076738963,0.66,237.38,237.36,35.6]
[1758076739168,0.3,237.39,237.37,4.21149541]
[1758076739461,0.3,237.39,237.38,40.05265481]
[1758076739861,0.96,237.39,237.38,40.05265481]
[1758076740162,0.3,237.49,237.41,26.0]
[1758076740364,0.3,237.49,237.42,35.82]
[1758076740666,1.29119084,237.45,237.42,35.82]
[1758076740862,0.66,237.44,237.42,35.82]
[1758076741045,0.66,237.43,237.42,49.41559401]
[1758076741366,0.66,237.43,237.42,53.62753908]
[1758076741660,1.29119084,237.47,237.42,53.62753908]
[1758076741661,0.3,237.49,237.42,53.62753908]
[1758076741866,0.66,237.46,237.42,53.62753908]
[1758076742167,0.66,237.45,237.43,13.59559401]
[1758076742473,1.29119084,237.47,237.44,35.98]
[1758076742641,1.29119084,237.46,237.44,35.98]
[1758076742848,0.66,237.45,237.44,35.98]
[1758076743369,0.3,237.49,237.41,26.0]
[1758076743370,0.66,237.48,237.47,13.59559401]
[1758076743568,0.3,237.49,237.47,54.04650936]
[1758076743774,0.66,237.48,237.47,54.04650936]
[1758076744775,0.66,237.48,237.47,55.73253014]